[Event "European Online Club-ch-H 2021"]
[Site "Online"]
[Date "2021.03.27"]
[Round "6.19"]
[White "Sadikhov, Ulvi"]
[Black "Glek, Igor"]
[Result "0-1"]
[ECO "A04"]
[WhiteElo "2490"]
[BlackElo "2475"]
[Annotator "ChessBase"]
[PlyCount "94"]
[EventDate "2021.03.27"]
[EventType "team-tourn"]
[EventCountry "NET"]
[SourceTitle "playchess.com"]
[Source "ChessBase"]
[SourceQuality "1"]
[TimeControl "900+5"]

1. e4 {[%emt 0:00:00]} e6 {[%emt 0:06:28]} 2. d3 {[%emt 0:00:12]} c5 {[%emt 0:00:43]} 3. Nf3 {[%emt 0:00:07]} Nc6 {[%emt 0:00:05]} 4. g3 {[%emt 0:00:01]} Nge7 {[%emt 0:00:02]} 5. Bg2 {[%emt 0:00:01]} g6 {[%emt 0:00:02]} 6. O-O {[%emt 0:00:02]} Bg7 {[%emt 0:00:02]} 7. Re1 {[%emt 0:00:06]} O-O {[%emt 0:00:04]} 8. h4 {[%emt 0:00:27]} h6 {[%emt 0:00:06]} 9. Nbd2 {[%emt 0:00:30]} e5 {[%emt 0:00:12]} 10. h5 {[%emt 0:01:55]} g5 {[%emt 0:00:00]} 11. Nc4 {[%emt 0:00:06]} d6 {[%emt 0:00:00]} 12. Nfd2 {[%emt 0:00:07]} Be6 {[%emt 0:00:00]} 13. a4 {[%emt 0:00:21]} Qd7 {[%emt 0:00:00]} 14. Nf1 {[%emt 0:03:12]} f5 {[%emt 0:00:00]} 15. exf5 {[%emt 0:00:42]} Nxf5 {[%emt 0:00:00]} 16. c3 {[%emt 0:01:23]} Rad8 {[%emt 0:00:00]} 17. Nh2 {[%emt 0:00:12]} Qf7 {[%emt 0:00:00]} 18. Qe2 {[%emt 0:01:00]} Rfe8 {[%emt 0:02:39]} 19. Ne3 {[%emt 0:00:33]} d5 {[%emt 0:00:21]} 20. Nxf5 {[%emt 0:01:33]} Bxf5 {[%emt 0:00:03]} 21. Bd2 {[%emt 0:00:32]} Kh8 {[%emt 0:02:03]} 22. Rad1 {[%emt 0:00:10]} b6 {[%emt 0:00:25]} 23. Bc1 {[%emt 0:00:29]} e4 {[%emt 0:00:40]} 24. dxe4 {[%emt 0:00:10]} Bxe4 {[%emt 0:00:01]} 25. Bxe4 {[%emt 0:00:19]} Rxe4 {[%emt 0:00:04]} 26. Qb5 {[%emt 0:00:25]} Rxe1+ {[%emt 0:00:35]} 27. Rxe1 {[%emt 0:00:02]} Rf8 {[%emt 0:00:08]} 28. f4 {[%emt 0:01:01]} Nd8 {[%emt 0:01:55]} 29. Qe2 {[%emt 0:00:10]} gxf4 {[%emt 0:00:10]} 30. Bxf4 {[%emt 0:00:04]} d4 {[%emt 0:00:02]} 31. c4 {[%emt 0:00:17]} Nc6 {[%emt 0:00:05]} 32. b3 {[%emt 0:00:40]} Nb4 {[%emt 0:00:03]} 33. Kg2 {[%emt 0:00:29]} d3 {[%emt 0:00:06]} 34. Qe4 {[%emt 0:00:05]} Qxh5 {[%emt 0:00:11]} 35. Nf3 {[%emt 0:00:02]} Qf5 {[%emt 0:00:14]} 36. Qb7 {[%emt 0:00:11]} Rf7 {[%emt 0:00:20]} 37. Qa8+ {[%emt 0:00:03]} Kh7 {[%emt 0:00:02]} 38. Nh4 {[%emt 0:00:04]} Qd7 {[%emt 0:00:08]} 39. Qe4+ {[%emt 0:00:17]} Kg8 {[%emt 0:00:01]} 40. Qg6 {[%emt 0:00:06]} Qb7+ {[%emt 0:00:09]} 41. Kh2 {[%emt 0:00:05]} Qd7 {[%emt 0:00:04]} 42. Bxh6 {[%emt 0:00:10]} d2 {[%emt 0:00:02]} 43. Rd1 {[%emt 0:00:03]} Rf2+ {[%emt 0:00:04]} 44. Kg1 {[%emt 0:00:04]} Re2 {[%emt 0:00:04]} 45. Qxg7+ {[%emt 0:00:08]} Qxg7 {[%emt 0:00:03]} 46. Bxg7 {[%emt 0:00:05]} Re1+ {[%emt 0:00:01]} 47. Kf2 {[%emt 0:00:03]} Rxd1 {[%emt 0:00:12]} 0-1

[Event "European Online Club-ch-H 2021"]
[Site "Online"]
[Date "2021.03.27"]
[Round "6.20"]
[White "Harff, Marcel"]
[Black "Ahmadzada, Ahmad"]
[Result "0-1"]
[ECO "A12"]
[WhiteElo "2360"]
[BlackElo "2431"]
[Annotator "NA"]
[PlyCount "102"]
[EventDate "2021.03.27"]
[EventType "team-tourn"]
[EventCountry "NET"]
[SourceTitle "playchess.com"]
[Source "ChessBase"]
[SourceQuality "1"]
[TimeControl "900+5"]

1. c4 {[%emt 0:00:00]} Nf6 {[%emt 0:00:04]} 2. g3 {[%emt 0:00:03]} c6 {[%emt 0:00:03]} 3. Bg2 {[%emt 0:00:01]} d5 {[%emt 0:00:02]} 4. b3 {[%emt 0:00:04]} Bf5 {[%emt 0:00:03]} 5. Bb2 {[%emt 0:00:02]} e6 {[%emt 0:00:02]} 6. Nf3 {[%emt 0:00:03]} Be7 {[%emt 0:00:03]} 7. O-O {[%emt 0:00:06]} O-O {[%emt 0:00:07]} 8. d3 {[%emt 0:00:02]} h6 {[%emt 0:00:03]} 9. Nbd2 {[%emt 0:00:10]} Bh7 {[%emt 0:00:05]} 10. a3 {[%emt 0:00:10]} a5 {[%emt 0:00:03]} 11. Qc2 {[%emt 0:00:23]} Nbd7 {[%emt 0:00:13]} 12. Rfe1 {[%emt 0:00:09]} Qb6 {[%emt 0:00:38]} 13. Bd4 {[%emt 0:00:41]} Bc5 {[%emt 0:00:11]} 14. Bxc5 {[%emt 0:00:09]} Nxc5 {[%emt 0:00:09]} 15. h3 {[%emt 0:00:47]} Rfe8 {[%emt 0:00:21]} 16. Rec1 {[%emt 0:00:04]} Ncd7 {[%emt 0:00:39]} 17. cxd5 {[%emt 0:00:45]} exd5 {[%emt 0:00:29]} 18. e3 {[%emt 0:00:08]} c5 {[%emt 0:01:16]} 19. Qc3 {[%emt 0:00:30]} Qd6 {[%emt 0:00:38]} 20. Rd1 {[%emt 0:01:10]} b5 {[%emt 0:00:45]} 21. e4 {[%emt 0:01:29]} dxe4 {[%emt 0:01:13]} 22. dxe4 {[%emt 0:00:16]} Qc7 {[%emt 0:00:18]} 23. e5 {[%emt 0:00:26]} Nd5 {[%emt 0:00:21]} 24. Qb2 {[%emt 0:00:06]} Rad8 {[%emt 0:01:06]} 25. a4 {[%emt 0:00:11]} c4 {[%emt 0:00:34]} 26. bxc4 {[%emt 0:00:55]} bxc4 {[%emt 0:00:10]} 27. Qd4 {[%emt 0:00:50]} N7b6 {[%emt 0:01:01]} 28. Rdc1 {[%emt 0:00:49]} Nb4 {[%emt 0:00:47]} 29. Qg4 {[%emt 0:00:48]} Nd3 {[%emt 0:00:24]} 30. Rc3 {[%emt 0:00:12]} Qc5 {[%emt 0:00:43]} 31. Rf1 {[%emt 0:00:32]} Nxe5 {[%emt 0:00:20]} 32. Nxe5 {[%emt 0:00:09]} Qxe5 {[%emt 0:00:11]} 33. Re3 {[%emt 0:00:40]} Qc5 {[%emt 0:00:14]} 34. Ne4 {[%emt 0:00:17]} Qd4 {[%emt 0:01:21]} 35. Rfe1 {[%emt 0:01:55]} Re6 {[%emt 0:00:08]} 36. Qh5 {[%emt 0:00:57]} Bxe4 {[%emt 0:01:08]} 37. Bxe4 {[%emt 0:00:15]} c3 {[%emt 0:00:18]} 38. Qxa5 {[%emt 0:00:27]} Nc4 {[%emt 0:00:19]} 39. Qxc3 {[%emt 0:00:46]} Nxe3 {[%emt 0:00:03]} 40. Qxe3 {[%emt 0:00:03]} Qxe3 {[%emt 0:00:07]} 41. Rxe3 {[%emt 0:00:02]} Rd4 {[%emt 0:00:06]} 42. f3 {[%emt 0:00:08]} Rxa4 {[%emt 0:00:07]} 43. Rb3 {[%emt 0:00:28]} g6 {[%emt 0:00:07]} 44. Rb2 {[%emt 0:00:23]} Rd6 {[%emt 0:00:10]} 45. Kf2 {[%emt 0:00:03]} Ra3 {[%emt 0:00:02]} 46. g4 {[%emt 0:00:03]} Rd4 {[%emt 0:00:06]} 47. Rb7 {[%emt 0:00:04]} Rd2+ {[%emt 0:00:13]} 48. Kg3 {[%emt 0:00:04]} g5 {[%emt 0:00:07]} 49. h4 {[%emt 0:00:08]} Raa2 {[%emt 0:00:03]} 50. hxg5 {[%emt 0:00:02]} hxg5 {[%emt 0:00:02]} 51. f4 {[%emt 0:00:06]} Ra3+ {[%emt 0:00:03]} 0-1

[Event "European Online Club-ch-H 2021"]
[Site "Online"]
[Date "2021.03.27"]
[Round "7.1"]
[White "Nagy, Gabor"]
[Black "Samani, Yamac"]
[Result "0-1"]
[ECO "A65"]
[WhiteElo "2509"]
[BlackElo "2246"]
[Annotator "ChessBase"]
[PlyCount "114"]
[EventDate "2021.03.27"]
[EventType "team-tourn"]
[EventCountry "NET"]
[SourceTitle "playchess.com"]
[Source "ChessBase"]
[SourceQuality "1"]
[TimeControl "900+5"]

1. d4 {[%emt 0:00:00]} Nf6 {[%emt 0:00:02]} 2. c4 {[%emt 0:00:07]} g6 {[%emt 0:00:01]} 3. Nc3 {[%emt 0:00:07]} Bg7 {[%emt 0:00:01]} 4. e4 {[%emt 0:00:12]} O-O {[%emt 0:00:02]} 5. Nge2 {[%emt 0:00:10]} d6 {[%emt 0:00:04]} 6. f3 {[%emt 0:00:07]} c5 {[%emt 0:00:05]} 7. d5 {[%emt 0:00:04]} e6 {[%emt 0:00:06]} 8. Ng3 {[%emt 0:00:05]} exd5 {[%emt 0:00:06]} 9. cxd5 {[%emt 0:00:02]} h5 {[%emt 0:00:09]} 10. Bg5 {[%emt 0:00:05]} a6 {[%emt 0:00:04]} 11. a4 {[%emt 0:00:03]} Qe8 {[%emt 0:00:17]} 12. Be2 {[%emt 0:00:28]} Nh7 {[%emt 0:00:03]} 13. Bf4 {[%emt 0:00:07]} h4 {[%emt 0:00:04]} 14. Nf1 {[%emt 0:00:20]} Qe7 {[%emt 0:00:05]} 15. Nd2 {[%emt 0:00:48]} Nd7 {[%emt 0:00:02]} 16. Nc4 {[%emt 0:00:21]} Ne5 {[%emt 0:00:02]} 17. Nb6 {[%emt 0:00:08]} Rb8 {[%emt 0:00:02]} 18. O-O {[%emt 0:00:40]} f5 {[%emt 0:01:31]} 19. Qd2 {[%emt 0:00:45]} g5 {[%emt 0:01:16]} 20. Be3 {[%emt 0:00:49]} f4 {[%emt 0:00:11]} 21. Bf2 {[%emt 0:00:03]} h3 {[%emt 0:00:03]} 22. Nxc8 {[%emt 0:00:15]} Rbxc8 {[%emt 0:00:13]} 23. gxh3 {[%emt 0:01:30]} Qd7 {[%emt 0:01:21]} 24. Kg2 {[%emt 0:00:40]} Rf6 {[%emt 0:00:27]} 25. Rg1 {[%emt 0:00:25]} Rcf8 {[%emt 0:01:26]} 26. Raf1 {[%emt 0:01:18]} Rh6 {[%emt 0:02:24]} 27. h4 {[%emt 0:00:03]} g4 {[%emt 0:01:33]} 28. Qd1 {[%emt 0:00:56]} gxf3+ {[%emt 0:00:51]} 29. Bxf3 {[%emt 0:00:05]} Ng5 {[%emt 0:00:03]} 30. Bh5 {[%emt 0:02:01]} f3+ {[%emt 0:01:35]} 31. Kh1 {[%emt 0:00:04]} Nh3 {[%emt 0:01:02]} 32. Rg3 {[%emt 0:00:12]} Rxh5 {[%emt 0:00:10]} 33. Qd2 {[%emt 0:00:02]} Kh7 {[%emt 0:00:32]} 34. Nd1 {[%emt 0:00:15]} Nxf2+ {[%emt 0:00:51]} 35. Nxf2 {[%emt 0:00:07]} Bh6 {[%emt 0:00:03]} 36. Qd1 {[%emt 0:00:06]} Rxh4 {[%emt 0:00:03]} 37. Rfg1 {[%emt 0:00:03]} Rf7 {[%emt 0:00:10]} 38. Nd3 {[%emt 0:00:22]} f2 {[%emt 0:00:16]} 39. Rf1 {[%emt 0:00:03]} Bf4 {[%emt 0:00:09]} 40. Rg2 {[%emt 0:00:15]} Qh3 {[%emt 0:00:17]} 41. Nxf2 {[%emt 0:00:15]} Qxh2+ {[%emt 0:00:27]} 42. Rxh2 {[%emt 0:00:01]} Rxh2+ {[%emt 0:00:02]} 43. Kg1 {[%emt 0:00:01]} Rg7+ {[%emt 0:00:07]} 44. Ng4 {[%emt 0:00:02]} Rxg4+ {[%emt 0:00:16]} 45. Qxg4 {[%emt 0:00:01]} Nxg4 {[%emt 0:00:01]} 46. Rxf4 {[%emt 0:00:02]} Rh4 {[%emt 0:00:02]} 47. Rf7+ {[%emt 0:00:01]} Kg6 {[%emt 0:00:02]} 48. Rxb7 {[%emt 0:00:05]} Kg5 {[%emt 0:00:02]} 49. Rb6 {[%emt 0:00:06]} Kf4 {[%emt 0:00:04]} 50. Rxa6 {[%emt 0:00:02]} Kg3 {[%emt 0:00:11]} 51. Rxd6 {[%emt 0:00:03]} Rh2 {[%emt 0:00:01]} 52. Rb6 {[%emt 0:00:24]} Re2 {[%emt 0:00:10]} 53. Kf1 {[%emt 0:00:07]} Kf3 {[%emt 0:00:02]} 54. a5 {[%emt 0:00:36]} Ne3+ {[%emt 0:00:11]} 55. Kg1 {[%emt 0:00:02]} Re1+ {[%emt 0:00:04]} 56. Kh2 {[%emt 0:00:02]} Ng4+ {[%emt 0:00:02]} 57. Kh3 {[%emt 0:00:01]} Rh1# {[%emt 0:00:02]} 0-1

[Event "European Online Club-ch-H 2021"]
[Site "Online"]
[Date "2021.03.27"]
[Round "7.2"]
[White "Agdelen, Huseyin Can"]
[Black "Mihok, Oliver"]
[Result "1-0"]
[ECO "B48"]
[WhiteElo "2206"]
[BlackElo "2540"]
[Annotator "ChessBase"]
[PlyCount "67"]
[EventDate "2021.03.27"]
[EventType "team-tourn"]
[EventCountry "NET"]
[SourceTitle "playchess.com"]
[Source "ChessBase"]
[SourceQuality "1"]
[TimeControl "900+5"]

1. e4 {[%emt 0:00:00]} c5 {[%emt 0:00:03]} 2. Nf3 {[%emt 0:00:02]} e6 {[%emt 0:00:01]} 3. d4 {[%emt 0:00:04]} cxd4 {[%emt 0:00:04]} 4. Nxd4 {[%emt 0:00:02]} Nc6 {[%emt 0:00:01]} 5. Nc3 {[%emt 0:00:11]} Qc7 {[%emt 0:00:03]} 6. Be3 {[%emt 0:00:04]} a6 {[%emt 0:00:02]} 7. Qd2 {[%emt 0:00:02]} Nf6 {[%emt 0:00:06]} 8. f4 {[%emt 0:00:02]} Bb4 {[%emt 0:00:04]} 9. Bd3 {[%emt 0:00:24]} O-O {[%emt 0:00:13]} 10. a3 {[%emt 0:00:39]} Be7 {[%emt 0:00:04]} 11. e5 {[%emt 0:00:21]} Ng4 {[%emt 0:00:12]} 12. Bg1 {[%emt 0:00:05]} f6 {[%emt 0:01:05]} 13. h3 {[%emt 0:00:29]} Nh6 {[%emt 0:00:14]} 14. exf6 {[%emt 0:00:20]} Bxf6 {[%emt 0:00:09]} 15. Nde2 {[%emt 0:00:10]} b5 {[%emt 0:00:48]} 16. Bf2 {[%emt 0:00:30]} Bb7 {[%emt 0:00:28]} 17. O-O {[%emt 0:03:23]} b4 {[%emt 0:00:32]} 18. axb4 {[%emt 0:01:52]} Nxb4 {[%emt 0:00:05]} 19. Be4 {[%emt 0:00:09]} Bxe4 {[%emt 0:01:44]} 20. Nxe4 {[%emt 0:00:00]} Qxc2 {[%emt 0:00:02]} 21. Nxf6+ {[%emt 0:01:19]} gxf6 {[%emt 0:00:39]} 22. Qxb4 {[%emt 0:00:57]} Qxe2 {[%emt 0:00:04]} 23. Ra3 {[%emt 0:02:44]} Nf5 {[%emt 0:00:52]} 24. Qb7 {[%emt 0:00:38]} Qb5 {[%emt 0:01:15]} 25. Qf3 {[%emt 0:00:13]} Qxb2 {[%emt 0:00:25]} 26. Rb3 {[%emt 0:00:06]} Qc2 {[%emt 0:00:17]} 27. Rd1 {[%emt 0:00:03]} Qc6 {[%emt 0:00:48]} 28. Qxc6 {[%emt 0:00:38]} dxc6 {[%emt 0:00:03]} 29. g4 {[%emt 0:00:00]} Ne7 {[%emt 0:00:41]} 30. Rd7 {[%emt 0:00:22]} Nd5 {[%emt 0:00:19]} 31. Rbb7 {[%emt 0:00:10]} Rfb8 {[%emt 0:01:14]} 32. Rg7+ {[%emt 0:00:05]} Kf8 {[%emt 0:00:03]} 33. Bc5+ {[%emt 0:00:16]} Ne7 {[%emt 0:00:09]} 34. Rbxe7 {[%emt 0:00:02]} 1-0

[Event "European Online Club-ch-H 2021"]
[Site "Online"]
[Date "2021.03.27"]
[Round "7.3"]
[White "Harff, Marcel"]
[Black "Sertbay, Huseyin"]
[Result "1-0"]
[ECO "A25"]
[WhiteElo "2360"]
[BlackElo "2101"]
[Annotator "NA"]
[PlyCount "73"]
[EventDate "2021.03.27"]
[EventType "team-tourn"]
[EventCountry "NET"]
[SourceTitle "playchess.com"]
[Source "ChessBase"]
[SourceQuality "1"]
[TimeControl "900+5"]

1. c4 {[%emt 0:00:00]} e5 {[%emt 0:00:14]} 2. g3 {[%emt 0:00:05]} Nc6 {[%emt 0:00:07]} 3. Bg2 {[%emt 0:00:02]} Bc5 {[%emt 0:00:01]} 4. Nc3 {[%emt 0:00:02]} Nf6 {[%emt 0:00:04]} 5. a3 {[%emt 0:00:03]} a6 {[%emt 0:00:02]} 6. e3 {[%emt 0:00:02]} d6 {[%emt 0:00:01]} 7. Nge2 {[%emt 0:00:02]} h6 {[%emt 0:00:05]} 8. d4 {[%emt 0:00:06]} exd4 {[%emt 0:00:02]} 9. exd4 {[%emt 0:00:02]} Ba7 {[%emt 0:00:01]} 10. h3 {[%emt 0:00:03]} O-O {[%emt 0:00:02]} 11. O-O {[%emt 0:00:03]} Re8 {[%emt 0:00:01]} 12. Be3 {[%emt 0:00:09]} Rb8 {[%emt 0:00:03]} 13. b4 {[%emt 0:00:08]} Bf5 {[%emt 0:00:09]} 14. Rc1 {[%emt 0:00:26]} Ne7 {[%emt 0:00:02]} 15. g4 {[%emt 0:00:15]} Bh7 {[%emt 0:00:11]} 16. Qd2 {[%emt 0:00:05]} c6 {[%emt 0:01:49]} 17. Bf4 {[%emt 0:00:18]} Qd7 {[%emt 0:00:09]} 18. c5 {[%emt 0:00:13]} dxc5 {[%emt 0:02:00]} 19. Bxb8 {[%emt 0:00:05]} Rxb8 {[%emt 0:00:01]} 20. Rfd1 {[%emt 0:00:38]} Rd8 {[%emt 0:00:04]} 21. bxc5 {[%emt 0:00:23]} Bxc5 {[%emt 0:00:02]} 22. Qb2 {[%emt 0:00:02]} Bd6 {[%emt 0:00:19]} 23. Na4 {[%emt 0:00:26]} Ned5 {[%emt 0:00:19]} 24. Nc5 {[%emt 0:00:11]} Qe7 {[%emt 0:00:15]} 25. Re1 {[%emt 0:00:04]} Re8 {[%emt 0:00:54]} 26. Qd2 {[%emt 0:00:46]} Bb8 {[%emt 0:00:26]} 27. Nc3 {[%emt 0:00:13]} Qd6 {[%emt 0:01:11]} 28. Nxd5 {[%emt 0:00:12]} cxd5 {[%emt 0:00:07]} 29. Rxe8+ {[%emt 0:00:19]} Nxe8 {[%emt 0:00:03]} 30. Qe3 {[%emt 0:00:32]} Qh2+ {[%emt 0:01:12]} 31. Kf1 {[%emt 0:00:04]} Nd6 {[%emt 0:00:03]} 32. Bxd5 {[%emt 0:00:41]} Bg6 {[%emt 0:00:17]} 33. Qg3 {[%emt 0:01:54]} Qxg3 {[%emt 0:00:40]} 34. fxg3 {[%emt 0:00:03]} Nb5 {[%emt 0:00:02]} 35. Nd7 {[%emt 0:00:04]} Bxg3 {[%emt 0:00:06]} 36. Rc8+ {[%emt 0:00:03]} Kh7 {[%emt 0:00:02]} 37. Nf8+ {[%emt 0:00:02]} 1-0

[Event "European Online Club-ch-H 2021"]
[Site "Online"]
[Date "2021.03.27"]
[Round "7.4"]
[White "Atasoy, Ata"]
[Black "Ahn, Martin"]
[Result "0-1"]
[ECO "B06"]
[WhiteElo "1636"]
[BlackElo "2171"]
[Annotator "NA"]
[PlyCount "116"]
[EventDate "2021.03.27"]
[EventType "team-tourn"]
[EventCountry "NET"]
[SourceTitle "playchess.com"]
[Source "ChessBase"]
[SourceQuality "1"]
[TimeControl "900+5"]

1. e4 {[%emt 0:00:00]} g6 {[%emt 0:00:05]} 2. d4 {[%emt 0:00:04]} Bg7 {[%emt 0:00:03]} 3. Nc3 {[%emt 0:00:03]} d6 {[%emt 0:00:04]} 4. Bg5 {[%emt 0:00:33]} a6 {[%emt 0:00:42]} 5. Qd2 {[%emt 0:00:10]} b5 {[%emt 0:00:04]} 6. O-O-O {[%emt 0:00:02]} Bb7 {[%emt 0:00:10]} 7. f3 {[%emt 0:00:03]} Nd7 {[%emt 0:00:08]} 8. Kb1 {[%emt 0:00:16]} c5 {[%emt 0:00:28]} 9. dxc5 {[%emt 0:00:28]} Nxc5 {[%emt 0:00:04]} 10. Nge2 {[%emt 0:01:34]} Rc8 {[%emt 0:00:56]} 11. Nd5 {[%emt 0:01:09]} Bxd5 {[%emt 0:00:22]} 12. Qxd5 {[%emt 0:00:26]} Ne6 {[%emt 0:00:48]} 13. Be3 {[%emt 0:00:19]} Nf6 {[%emt 0:00:48]} 14. Qd2 {[%emt 0:00:11]} h5 {[%emt 0:01:01]} 15. h4 {[%emt 0:00:18]} Nd7 {[%emt 0:00:11]} 16. Nd4 {[%emt 0:00:44]} Nxd4 {[%emt 0:02:11]} 17. Bxd4 {[%emt 0:00:02]} Bxd4 {[%emt 0:00:09]} 18. Qxd4 {[%emt 0:00:00]} O-O {[%emt 0:00:03]} 19. g4 {[%emt 0:00:11]} Qc7 {[%emt 0:00:03]} 20. Bd3 {[%emt 0:00:14]} Qc5 {[%emt 0:00:10]} 21. Qxc5 {[%emt 0:01:03]} Rxc5 {[%emt 0:00:02]} 22. b4 {[%emt 0:00:04]} Rc3 {[%emt 0:00:27]} 23. gxh5 {[%emt 0:00:05]} gxh5 {[%emt 0:00:16]} 24. Rdg1+ {[%emt 0:00:32]} Kh8 {[%emt 0:00:03]} 25. Rg5 {[%emt 0:00:03]} Nf6 {[%emt 0:00:01]} 26. f4 {[%emt 0:01:17]} Rg8 {[%emt 0:02:26]} 27. e5 {[%emt 0:01:09]} dxe5 {[%emt 0:00:03]} 28. fxe5 {[%emt 0:00:17]} Rxg5 {[%emt 0:00:18]} 29. hxg5 {[%emt 0:00:14]} Nd7 {[%emt 0:00:53]} 30. Rxh5+ {[%emt 0:00:13]} Kg8 {[%emt 0:00:02]} 31. g6 {[%emt 0:00:33]} fxg6 {[%emt 0:00:03]} 32. Rg5 {[%emt 0:00:54]} Kh7 {[%emt 0:01:48]} 33. Bxg6+ {[%emt 0:03:20]} Kh6 {[%emt 0:00:04]} 34. Rg1 {[%emt 0:00:19]} Nxe5 {[%emt 0:00:09]} 35. Bf5 {[%emt 0:00:13]} Rf3 {[%emt 0:00:45]} 36. Bc8 {[%emt 0:00:17]} Rf6 {[%emt 0:00:17]} 37. Re1 {[%emt 0:00:25]} Nc4 {[%emt 0:00:03]} 38. c3 {[%emt 0:00:11]} e5 {[%emt 0:00:06]} 39. Bg4 {[%emt 0:00:11]} Kg5 {[%emt 0:01:40]} 40. Be2 {[%emt 0:00:03]} Nd6 {[%emt 0:00:02]} 41. a4 {[%emt 0:00:04]} e4 {[%emt 0:00:06]} 42. axb5 {[%emt 0:00:06]} axb5 {[%emt 0:00:01]} 43. Kc2 {[%emt 0:00:06]} Rf2 {[%emt 0:00:02]} 44. Kb3 {[%emt 0:00:06]} Kf4 {[%emt 0:00:02]} 45. c4 {[%emt 0:00:01]} bxc4+ {[%emt 0:00:05]} 46. Bxc4 {[%emt 0:00:01]} Rf3+ {[%emt 0:00:02]} 47. Kc2 {[%emt 0:00:14]} Nxc4 {[%emt 0:00:02]} 48. b5 {[%emt 0:00:03]} Na3+ {[%emt 0:00:02]} 49. Kd2 {[%emt 0:00:03]} Nxb5 {[%emt 0:00:03]} 50. Rh1 {[%emt 0:00:01]} Nd4 {[%emt 0:00:04]} 51. Rh8 {[%emt 0:00:02]} e3+ {[%emt 0:00:04]} 52. Ke1 {[%emt 0:00:01]} Rg3 {[%emt 0:00:13]} 53. Rh1 {[%emt 0:00:12]} Ke4 {[%emt 0:00:02]} 54. Rf1 {[%emt 0:00:05]} Kd3 {[%emt 0:00:03]} 55. Rh1 {[%emt 0:00:02]} Nf3+ {[%emt 0:00:15]} 56. Kf1 {[%emt 0:00:11]} Rg1+ {[%emt 0:00:09]} 57. Rxg1 {[%emt 0:00:03]} Nxg1 {[%emt 0:00:01]} 58. Kxg1 {[%emt 0:00:02]} Kd2 {[%emt 0:00:02]} 0-1